[Event "French Top 16-A 2024"]
[Site "Chartres"]
[Date "2024.06.01"]
[Round "3.8"]
[White "Fischer, Julie"]
[Black "Delay, Guillaume"]
[Result "1-0"]
[ECO "B31"]
[WhiteElo "2092"]
[BlackElo "2043"]
[Annotator "NA RC"]
[PlyCount "69"]
[EventDate "2024.06.01"]
[EventType "team-tourn"]
[EventCountry "FRA"]
[SourceTitle "playchess.com"]
[Source "ChessBase"]
[SourceQuality "1"]
[TimeControl "40/5400+30:1800+30"]

1. e4 {[%emt 0:00:03]} c5 {[%emt 0:00:12]} 2. Nf3 {[%emt 0:00:13]} Nc6 {[%emt 0:00:14]} 3. Bb5 {[%emt 0:00:35]} g6 {[%emt 0:00:18]} 4. Bxc6 {[%emt 0:01:30]} dxc6 {[%emt 0:00:24]} 5. d3 {[%emt 0:00:41]} Bg7 {[%emt 0:00:16]} 6. h3 {[%emt 0:00:22]} Nf6 {[%emt 0:00:28]} 7. O-O {[%emt 0:02:17]} Nd7 {[%emt 0:06:29]} 8. c3 {[%emt 0:04:25]} e5 {[%emt 0:00:29]} 9. Be3 {[%emt 0:09:10]} O-O {[%emt 0:02:06]} 10. d4 {[%emt 0:01:55]} cxd4 {[%emt 0:06:24]} 11. cxd4 {[%emt 0:00:59]} exd4 {[%emt 0:00:54]} 12. Bxd4 {[%emt 0:00:59]} Nf6 {[%emt 0:02:43]} 13. Nc3 {[%emt 0:01:35]} Be6 {[%emt 0:05:38]} 14. Qd2 {[%emt 0:14:27]} Qe7 {[%emt 0:06:57]} 15. Qc2 {[%emt 0:21:38]} Rfd8 {[%emt 0:08:03]} 16. Rad1 {[%emt 0:02:55]} c5 {[%emt 0:14:11]} 17. Be3 {[%emt 0:07:37]} b6 {[%emt 0:01:27]} 18. Bg5 {[%emt 0:07:58]} h6 {[%emt 0:02:38]} 19. Bh4 {[%emt 0:01:59]} g5 {[%emt 0:03:31]} 20. Bg3 {[%emt 0:08:42]} Bc4 {[%emt 0:13:14]} 21. Rfe1 {[%emt 0:00:47]} Rxd1 {[%emt 0:00:13]} 22. Nxd1 {[%emt 0:02:45]} Bb5 {[%emt 0:07:40]} 23. Nc3 {[%emt 0:03:41]} Bc6 {[%emt 0:01:08]} 24. h4 {[%emt 0:03:19]} Nh5 {[%emt 0:04:35]} 25. Nd5 {[%emt 0:00:15]} Qb7 {[%emt 0:03:13]} 26. hxg5 {[%emt 0:01:02]} Nxg3 {[%emt 0:03:22]} 27. gxh6 {[%emt 0:01:08]} Nxe4 {[%emt 0:00:56]} 28. Rxe4 {[%emt 0:00:33]} Bxd5 {[%emt 0:04:40]} 29. Rg4 {[%emt 0:00:08]} Be4 {[%emt 0:01:47]} 30. Rxg7+ {[%emt 0:00:41]} Kf8 {[%emt 0:00:37]} 31. Qc3 {[%emt 0:00:41]} Qd5 {[%emt 0:00:42]} 32. Qf6 {[%emt 0:00:30]} Ke8 {[%emt 0:00:22]} 33. Rg8+ {[%emt 0:00:22]} Kd7 {[%emt 0:00:06]} 34. Ne5+ {[%emt 0:00:26]} Kc7 {[%emt 0:00:31]} 35. Qe7+ {[%emt 0:00:10]} 1-0

[Event "French Top 16-A 2024"]
[Site "Chartres"]
[Date "2024.06.01"]
[Round "3.9"]
[White "Van Foreest, Jorden"]
[Black "Vachier-Lagrave, Maxime"]
[Result "1/2-1/2"]
[ECO "B90"]
[WhiteElo "2665"]
[BlackElo "2732"]
[Annotator "TA"]
[PlyCount "80"]
[EventDate "2024.06.01"]
[EventType "team-tourn"]
[EventCountry "FRA"]
[SourceTitle "playchess.com"]
[Source "ChessBase"]
[SourceQuality "1"]
[TimeControl "40/5400+30:1800+30"]

{[%evp 10,80,27,0,12,22,19,0,0,0,164,0,0,7,0,0,41,47,77,102,84,42,57,57,48,55,48,53,36,27,37,33,33,26,52,46,41,41,70,72,61,21,97,96,85,93,88,81,100,87,81,72,102,97,116,114,112,100,105,114,114,108,100,17,4,5,8,0,0,0,0,0,0]} 1. e4 {[%emt 0:00:59]} c5 {[%emt 0:00:05]} 2. Nf3 {[%emt 0:00:24]} d6 {[%emt 0:00:06]} 3. d4 {[%emt 0:00:12]} cxd4 {[%emt 0:00:04]} 4. Nxd4 {[%emt 0:00:07]} Nf6 {[%emt 0:00:03]} 5. Nc3 {[%emt 0:00:11]} a6 {[%emt 0:00:04]} 6. Rg1 {[%emt 0:00:19]} h5 {[%emt 0:00:16]} 7. Bg5 {[%emt 0:01:18]} b5 {[%emt 0:04:55]} 8. a4 {[%emt 0:00:54]} b4 {[%emt 0:03:45]} 9. Nd5 {[%emt 0:00:34]} e6 $2 {[%emt 0:04:47]} (9... Nxe4 $11 10. Bh4 Bb7) 10. Nxf6+ $2 {[%emt 0:05:37]} ({Inferior is} 10. Nxb4 Qa5 11. Bd2 Nxe4 $17) (10. e5 $1 $18 exd5 (10... dxe5 11. Nxe6 Bxe6 12. Nxf6+ gxf6 13. Qxd8+ Kxd8 14. Bxf6+ Ke8 15. Bxh8 $16) 11. exf6) 10... gxf6 $11 {[%emt 0:01:22]} 11. Bd2 {[%emt 0:05:24]} d5 {[%emt 0:06:03]} 12. Bd3 {[%emt 0:13:08]} e5 {[%emt 0:09:53]} 13. Nb3 {[%emt 0:02:24]} dxe4 {[%emt 0:12:11]} 14. Bxe4 {[%emt 0:00:47]} Ra7 {[%emt 0:00:05]} 15. Be3 {[%emt 0:08:44]} Qxd1+ {[%emt 0:01:59]} 16. Rxd1 {[%emt 0:00:20]} Rd7 {[%emt 0:00:12]} 17. Rc1 {[%emt 0:03:28]} Bh6 {[%emt 0:06:50]} 18. c3 {[%emt 0:09:13]} Bxe3 {[%emt 0:03:40]} 19. fxe3 {[%emt 0:00:08]} bxc3 {[%emt 0:00:06]} 20. Rxc3 {[%emt 0:00:16]} Ke7 {[%emt 0:04:05]} 21. Ke2 {[%emt 0:04:42] Black must now prevent Rgc1.} Ra7 {[%emt 0:00:45]} 22. Rgc1 $36 {[%emt 0:03:07][%mdl 2048] White is pushing.} Be6 {[%emt 0:03:24]} 23. Na5 {[%emt 0:04:21]} f5 {[%emt 0:02:52]} 24. Bb7 {[%emt 0:00:25] White is more active.} Rg8 {[%emt 0:00:24][%cal Oa7b7]} 25. Kf2 {[%emt 0:04:02]} Rg4 {[%emt 0:01:34]} (25... Rd8 $11) 26. b3 $1 $16 {[%emt 0:02:15]} Rb4 {[%emt 0:00:18]} 27. Bc8 {[%emt 0:00:16]} f4 {[%emt 0:06:56]} 28. Bxe6 {[%emt 0:03:19]} (28. exf4 {simplifies} Rxf4+ 29. Rf3 Rxf3+ 30. gxf3 Kf6 31. Bxe6 fxe6 32. Rc8) 28... Kxe6 {[%emt 0:00:13]} 29. Rc8 {[%emt 0:00:04]} Rd7 {[%emt 0:03:21]} 30. exf4 {[%emt 0:05:06]} Rxf4+ {[%emt 0:01:59]} 31. Ke3 {[%emt 0:00:09]} Rd5 {[%emt 0:02:17]} 32. Nc4 {[%emt 0:09:11]} Nd7 {[%emt 0:00:14]} 33. Rc6+ {[%emt 0:00:21]} Ke7 {[%emt 0:02:46] [#]} 34. Nxe5 $1 {[%emt 0:03:22][%mdl 512]} Rb4 {[%emt 0:00:08]} 35. Nxd7 {[%emt 0:00:03]} Rxb3+ {[%emt 0:00:07] [#]} 36. Ke4 {[%emt 0:00:35]} (36. R6c3 $1 $16 {[%cal Rc3b3]} Rxc3+ 37. Rxc3 Kxd7 38. g3) 36... Rxd7 $11 {[%emt 0:00:10] The position is equal.} 37. Rxa6 {[%emt 0:00:07]} Rb2 {[%emt 0:03:48] Wards off Rc2} 38. Rc5 {[%emt 0:01:38]} Rxg2 {[%emt 0:01:21]} 39. Rxh5 {[%emt 0:00:15]} Re2+ {[%emt 0:02:13]} 40. Kf3 {[%emt 0:01:19]} Rdd2 {[%emt 0:00:14] Weighted Error Value: White=0.14 (very precise) /Black=0.15 (very precise) .  Loses game:     	---       	Black=1      Missed win:     	White=1     	---        Mistake:       	White=1     	Black=1      Inaccurate:     	White=2     	Black=5      OK:         	White=12    	Black=16     Best:        	White=1     	Black=3      Strong:       	White=1     	---        Brilliant:      	White=1     	---} 1/2-1/2

[Event "French Top 16-A 2024"]
[Site "Chartres"]
[Date "2024.06.01"]
[Round "3.9"]
[White "Laurent-Paoli, Pierre"]
[Black "Travadon, Loic"]
[Result "1/2-1/2"]
[ECO "E19"]
[WhiteElo "2576"]
[BlackElo "2446"]
[Annotator "TA"]
[PlyCount "193"]
[EventDate "2024.06.01"]
[EventType "team-tourn"]
[EventCountry "FRA"]
[SourceTitle "playchess.com"]
[Source "ChessBase"]
[SourceQuality "1"]
[TimeControl "40/5400+30:1800+30"]

{[%evp 18,193,23,25,16,9,13,0,0,0,0,0,0,-14,0,0,11,0,13,0,0,8,0,0,0,0,0,5,10,6,14,0,0,0,0,-12,0,0,0,0,0,0,0,0,0,0,0,0,0,0,0,0,0,0,0,0,0,0,0,0,0,0,0,0,15,30,15,15,54,38,54,54,54,54,21,21,21,21,21,21,32,17,46,46,46,46,46,22,46,46,46,39,39,39,39,39,39,39,39,39,39,39,39,39,39,0,39,0,39,0,39,0,39,39,39,36,39,39,39,0,39,0,39,0,39,0,39,0,0,0,0,0,42,0,27,0,56,0,0,0,51,51,51,51,51,51,51,29,29,29,29,29,29,29,29,29,29,8,8,8,8,8,8,0,0,0,8,0,168,0,0,0,0,0,0,-17,-17,-17]} 1. d4 {[%emt 0:00:50]} Nf6 {[%emt 0:00:05]} 2. c4 {[%emt 0:00:17]} e6 {[%emt 0:00:07]} 3. Nf3 {[%emt 0:00:37]} b6 {[%emt 0:00:08]} 4. g3 {[%emt 0:01:50]} Bb7 {[%emt 0:00:07]} 5. Bg2 {[%emt 0:00:06]} Be7 {[%emt 0:00:07]} 6. O-O {[%emt 0:00:19]} O-O {[%emt 0:00:07]} 7. Nc3 {[%emt 0:03:54]} Ne4 {[%emt 0:00:08]} 8. Qc2 {[%emt 0:00:13]} Nxc3 {[%emt 0:00:46]} 9. Qxc3 {[%emt 0:00:21]} d6 {[%emt 0:02:23]} 10. Qd3 {[%emt 0:03:39][%cal Of3g5] And now Ng5! would win.} f5 {[%emt 0:00:52]} 11. Qe3 {[%emt 0:14:50]} Qc8 {[%emt 0:00:10]} 12. Ne1 {[%emt 0:00:12][%cal Bf3e1,Be1g2,Bg2f4][%mdl 32]} Bxg2 {[%emt 0:00:55]} 13. Nxg2 {[%emt 0:00:03]} Bf6 {[%emt 0:01:17]} 14. Nf4 {[%emt 0:03:02]} e5 {[%emt 0:10:25]} 15. Qf3 {[%emt 0:05:27]} e4 {[%emt 0:03:06]} 16. Qb3 {[%emt 0:02:44]} Nc6 {[%emt 0:06:20]} 17. d5 {[%emt 0:07:56]} Na5 {[%emt 0:08:33]} 18. Qa4 {[%emt 0:05:10]} Qe8 {[%emt 0:03:13]} 19. Qc2 {[%emt 0:01:05]} Nb7 {[%emt 0:05:41]} 20. Be3 {[%emt 0:02:05]} Nd8 {[%emt 0:00:23]} 21. Rae1 {[%emt 0:01:46]} g5 {[%emt 0:02:33]} 22. Ng2 {[%emt 0:00:07]} Qg6 {[%emt 0:00:47]} 23. f4 {[%emt 0:03:55] fxg5 is the strong threat.} g4 {[%emt 0:01:54]} 24. Rd1 {[%emt 0:01:18]} Qg7 {[%emt 0:00:41]} 25. b3 {[%emt 0:00:44]} Nb7 {[%emt 0:01:34]} 26. Qd2 {[%emt 0:03:58]} Bc3 {[%emt 0:00:29]} 27. Bd4 {[%emt 0:01:27]} Bxd2 {[%emt 0:03:19]} 28. Bxg7 {[%emt 0:00:04]} Kxg7 {[%emt 0:04:19]} 29. Rxd2 {[%emt 0:00:04]} a5 {[%emt 0:00:27]} 30. Ne3 {[%emt 0:00:32]} Nc5 {[%emt 0:00:16]} 31. Kf2 {[%emt 0:05:59]} h5 {[%emt 0:00:57]} 32. h4 {[%emt 0:00:48]} Kf6 {[%emt 0:00:53]} 33. Rc2 {[%emt 0:05:39]} Rfb8 {[%emt 0:00:34]} 34. Rd1 {[%emt 0:01:36]} Nd7 {[%emt 0:06:11]} 35. Rb1 {[%emt 0:03:06]} Nc5 {[%emt 0:00:11]} 36. Rd1 {[%emt 0:01:33]} Nd7 {[%emt 0:00:03]} 37. Ke1 {[%emt 0:01:55]} Nc5 {[%emt 0:00:06]} 38. Rd4 {[%emt 0:00:40]} Nd7 {[%emt 0:00:20]} 39. Kf1 {[%emt 0:03:03]} Nc5 {[%emt 0:00:06]} 40. Kf2 {[%emt 0:00:20]} Nd7 {[%emt 0:00:05]} 41. Nd1 {[%emt 0:31:12]} Nc5 {[%emt 0:30:30]} 42. Nc3 {[%emt 0:01:18]} Re8 {[%emt 0:00:06]} 43. Ke3 $1 {[%emt 0:00:51]} Re7 {[%emt 0:01:55]} 44. Rd1 {[%emt 0:01:47]} Ree8 {[%emt 0:03:10]} 45. Nb5 {[%emt 0:01:08]} Rec8 {[%emt 0:05:24]} 46. Rb1 {[%emt 0:02:13]} Nb7 {[%emt 0:01:05]} 47. Rd2 {[%emt 0:01:29]} Nc5 {[%emt 0:00:05]} 48. Rdd1 {[%emt 0:01:11]} Nb7 {[%emt 0:00:13]} 49. a3 {[%emt 0:00:41]} Ra6 {[%emt 0:03:02]} 50. Ra1 {[%emt 0:02:06]} Raa8 {[%emt 0:00:51]} 51. Nd4 {[%emt 0:01:27]} Nc5 {[%emt 0:00:50]} 52. Rdb1 {[%emt 0:01:03]} Nb7 {[%emt 0:00:37]} 53. b4 {[%emt 0:05:54]} Ra6 {[%emt 0:00:58]} 54. Kd2 {[%emt 0:01:05]} Ra7 {[%emt 0:03:36]} 55. e3 {[%emt 0:00:00]} Ra6 {[%emt 0:00:00]} 56. Kc3 {[%emt 0:00:00]} Ra7 {[%emt 0:00:00]} 57. Kb2 {[%emt 0:00:00]} Ra6 {[%emt 0:00:00]} 58. Rc1 {[%emt 0:00:00]} Ra7 {[%emt 0:00:00]} 59. Nb3 {[%emt 0:00:00]} Ra6 {[%emt 0:00:00]} 60. Kc3 {[%emt 0:00:00]} Rca8 {[%emt 0:00:00]} 61. Kd4 {[%emt 0:00:00]} Rd8 {[%emt 0:00:00]} 62. Kc3 {[%emt 0:00:00]} Rda8 {[%emt 0:00:00]} 63. Kb2 {[%emt 0:00:00]} R6a7 {[%emt 0:00:00]} 64. Nd4 {[%emt 0:00:00] [#] Hoping for Nb5.} Ra6 {[%emt 0:00:00]} 65. Ne6 {[%emt 0:00:00]} Rc8 $1 {[%emt 0:00:00]} 66. Kb3 {[%emt 0:00:00]} Nd8 {[%emt 0:00:00]} 67. Nd4 {[%emt 0:00:00]} Nb7 {[%emt 0:00:00]} 68. Kb2 {[%emt 0:00:00]} Ra7 {[%emt 0:00:00]} 69. Nb3 {[%emt 0:00:00]} Rca8 {[%emt 0:00:00]} 70. Kc3 {[%emt 0:00:00]} Ra6 {[%emt 0:00:00]} 71. Rab1 {[%emt 0:00:00]} Rc8 {[%emt 0:00:00]} 72. Rc2 {[%emt 0:00:00]} Rca8 {[%emt 0:00:00]} 73. Kd2 {[%emt 0:00:00]} R6a7 {[%emt 0:00:00]} 74. Rcc1 {[%emt 0:00:00]} Rd8 {[%emt 0:00:00]} 75. Rc3 {[%emt 0:00:00]} Rb8 {[%emt 0:00:00]} 76. Rb2 {[%emt 0:00:00]} Rd8 {[%emt 0:00:00]} (76... Rba8 $11) 77. Kc1 {[%emt 0:00:00]} ({Better is} 77. Nd4 $14) 77... Rda8 {[%emt 0:00:00]} 78. Nd4 {[%emt 0:00:00]} Rc8 {[%emt 0:00:00]} ({Black should try} 78... axb4 $11 79. axb4 Nd8 (79... Ra1+ 80. Rb1 $14)) 79. Nb5 $14 {[%emt 0:00:00]} Ra6 {[%emt 0:00:00]} 80. Kb1 {[%emt 0:00:00]} Raa8 {[%emt 0:00:00]} 81. Rbc2 {[%emt 0:00:00]} Ra6 {[%emt 0:00:00]} 82. Kb2 {[%emt 0:00:00]} Raa8 {[%emt 0:00:00]} 83. Rc1 {[%emt 0:00:00]} Ra6 {[%emt 0:00:00]} 84. Kb3 {[%emt 0:00:10]} Raa8 {[%emt 0:00:00]} 85. R3c2 {[%emt 0:00:40]} Ra6 {[%emt 0:00:00]} 86. Ra2 {[%emt 0:03:19]} Raa8 {[%emt 0:00:00]} 87. Rcc2 {[%emt 0:00:13]} Ra6 {[%emt 0:00:00]} 88. Nd4 {[%emt 0:00:04]} Ra7 {[%emt 0:00:00]} 89. Rd2 {[%emt 0:02:06]} Ra6 {[%emt 0:00:00]} 90. Ne6 {[%emt 0:00:43]} Nd8 {[%emt 0:00:00]} 91. Nd4 {[%emt 0:03:18]} Nb7 {[%emt 0:00:00]} 92. Nc6 {[%emt 0:00:28]} Rca8 $2 {[%emt 0:00:00] [#]} (92... Nd8 $11 {and Black stays safe.}) 93. Rdc2 $2 {[%emt 0:00:25]} (93. b5 $1 $18 {[%cal Rb5a6]} Nc5+ 94. Kc2) 93... Rc8 $11 {[%emt 0:00:00] The position is equal.} ({Not} 93... axb4 $2 94. axb4 Kf7 (94... Rxa2 $2 95. Rxa2 Rxa2 96. Kxa2 $18) 95. Rxa6 Rxa6 96. Ra2 Rxa2 97. Kxa2 $18) 94. Nd4 {[%emt 0:00:42]} Ra7 {[%emt 0:00:00]} 95. Ne6 {[%emt 0:00:06]} Nd8 {[%emt 0:00:00]} 96. Nxd8 {[%emt 0:01:18]} Rxd8 {[%emt 0:00:00]} 97. b5 {[%emt 0:01:15] Weighted Error Value: White=0.02 (flawless) /Black=0.04 (flawless) .  Loses game:     	---       	Black=1      Missed win:     	White=1     	---        Mistake:       	White=1     	Black=2      Inaccurate:     	White=8     	Black=9      OK:         	White=31    	Black=20     Best:        	White=2     	---        Strong:       	White=1     	Black=1} 1/2-1/2

[Event "French Top 16-A 2024"]
[Site "Chartres"]
[Date "2024.06.01"]
[Round "3.10"]
[White "Martirosyan, Haik M."]
[Black "Van Wely, Loek"]
[Result "1/2-1/2"]
[ECO "D43"]
[WhiteElo "2679"]
[BlackElo "2608"]
[Annotator "TA"]
[PlyCount "91"]
[EventDate "2024.06.01"]
[EventType "team-tourn"]
[EventCountry "FRA"]
[SourceTitle "playchess.com"]
[Source "ChessBase"]
[SourceQuality "1"]
[TimeControl "40/5400+30:1800+30"]

{[%evp 17,91,9,20,0,0,-3,16,14,31,18,33,18,17,24,29,22,14,21,8,8,4,14,18,7,13,9,57,0,0,0,0,0,0,0,0,0,0,0,27,19,24,15,27,2,15,0,0,0,0,0,0,0,0,0,0,0,0,0,0,0,0,0,0,-100,0,0,0,0,0,0,0,0,0,0,0,0]} 1. d4 {[%emt 0:00:08]} Nf6 {[%emt 0:00:19]} 2. c4 {[%emt 0:00:14]} e6 {[%emt 0:00:11]} 3. Nf3 {[%emt 0:00:20]} d5 {[%emt 0:00:11]} 4. Nc3 {[%emt 0:00:13]} c6 {[%emt 0:00:06]} 5. Bg5 {[%emt 0:00:19]} h6 {[%emt 0:00:06]} 6. Bxf6 {[%emt 0:00:09]} Qxf6 {[%emt 0:00:07]} 7. e3 {[%emt 0:00:27]} g6 {[%emt 0:00:06]} 8. Bd3 {[%emt 0:00:54] D43: Semi-Slav: 5 Bg5 h6.} Bg7 {[%emt 0:00:07]} 9. O-O {[%emt 0:00:20]} O-O {[%emt 0:00:04]} 10. a4 $146 {[%emt 0:01:47]} ({Predecessor:} 10. Re1 dxc4 11. Bxc4 Nd7 12. e4 Qe7 13. e5 Rd8 14. Bd3 b6 15. Qe2 a5 16. Rac1 Bb7 17. Be4 Ba6 18. Qe3 Rac8 19. Bb1 Qf8 20. h4 c5 21. Rcd1 cxd4 22. Rxd4 {½-½ Sevian,S (2698)-Shankland,S (2698) USA-ch Saint Louis 2023 (7)}) 10... a5 {[%emt 0:06:42]} 11. Ne5 {[%emt 0:04:34]} dxc4 {[%emt 0:15:53]} 12. Nxc4 {[%emt 0:07:49]} Nd7 {[%emt 0:01:34]} 13. f4 {[%emt 0:06:05]} Qd8 {[%emt 0:09:40]} 14. Rc1 {[%emt 0:05:00]} c5 {[%emt 0:05:39]} 15. d5 {[%emt 0:01:43]} Bxc3 {[%emt 0:00:09]} 16. dxe6 {[%emt 0:00:14]} Bg7 {[%emt 0:00:33]} 17. exd7 {[%emt 0:00:16]} Bxd7 {[%emt 0:00:08]} 18. Be4 {[%emt 0:15:28]} Rb8 {[%emt 0:04:20]} 19. b3 {[%emt 0:03:34]} b5 {[%emt 0:08:51]} 20. axb5 {[%emt 0:02:50]} Bxb5 {[%emt 0:00:17]} 21. Bd5 {[%emt 0:01:29]} Kh8 {[%emt 0:07:17]} (21... Kh7 $11 {feels stronger.}) 22. e4 {[%emt 0:02:46]} ({White should play} 22. f5 $14) 22... Bd4+ $11 {[%emt 0:01:28]} 23. Kh1 {[%emt 0:00:40]} f5 {[%emt 0:00:12]} 24. Qf3 {[%emt 0:02:51]} fxe4 {[%emt 0:04:04]} 25. Bxe4 {[%emt 0:00:27]} Qf6 {[%emt 0:01:33]} 26. Bd3 {[%emt 0:04:37]} Bc6 {[%emt 0:09:40]} 27. Qg3 {[%emt 0:02:35]} Rxb3 {[%emt 0:09:41]} 28. Nxa5 {[%emt 0:01:17]} Ra3 {[%emt 0:00:45]} 29. Nxc6 {[%emt 0:02:41]} Qxc6 {[%emt 0:15:17]} 30. Rf3 {[%emt 0:01:21]} Qd6 {[%emt 0:00:00]} 31. Rcf1 {[%emt 0:02:17]} Kg7 {[%emt 0:00:00]} 32. Qh3 {[%emt 0:04:40]} Ra1 {[%emt 0:00:00]} 33. Bb1 {[%emt 0:04:53]} Rb8 {[%emt 0:00:00]} 34. Rb3 {[%emt 0:10:36]} Qxf4 {[%emt 0:00:32]} 35. Qd7+ {[%emt 0:00:10]} Kh8 {[%emt 0:00:07]} 36. Re1 {[%emt 0:00:31]} Rf8 {[%emt 0:00:53]} ({And not} 36... Rxb3 37. Re8+) 37. Rf3 $1 {[%emt 0:01:30]} (37. Rb7 $2 {leads to mate.} Qf1+ 38. Rxf1 Rxf1#) 37... Qb8 {[%emt 0:00:01]} 38. Rxf8+ {[%emt 0:02:15]} Qxf8 {[%emt 0:00:02]} 39. h4 {[%emt 0:00:48]} Be5 {[%emt 0:01:30]} 40. Rd1 {[%emt 0:02:49]} (40. h5 $11 {keeps the balance.} Qf6 41. Qe8+ Kg7 42. Qd7+ Kf8 43. Qh3) 40... Bd4 {[%emt 0:01:31]} ({Black should try} 40... h5 $17 41. Re1 (41. Bxg6 $2 {is a self mate.} Qf1+ 42. Rxf1 Rxf1#) 41... Bg3) 41. Re1 $11 {[%emt 0:33:20]} Be5 {[%emt 0:06:27]} 42. h5 {[%emt 0:00:00]} (42. Rd1 $5) 42... Qf6 {[%emt 0:15:34]} 43. Qe8+ {[%emt 0:00:00]} Kg7 {[%emt 0:02:04]} 44. Qd7+ {[%emt 0:00:00]} Kh8 {[%emt 0:00:15]} 45. Qe8+ {[%emt 0:00:00]} Kg7 {[%emt 0:00:08]} 46. Qd7+ {[%emt 0:00:00]} 1/2-1/2

[Event "French Top 16-A 2024"]
[Site "Chartres"]
[Date "2024.06.01"]
[Round "3.10"]
[White "Emmenecker, Pierre-Antoine"]
[Black "Albornoz Cabrera, Carlos Daniel"]
[Result "0-1"]
[ECO "A13"]
[WhiteElo "2306"]
[BlackElo "2612"]
[Annotator "TA"]
[PlyCount "90"]
[EventDate "2024.06.01"]
[EventType "team-tourn"]
[EventCountry "FRA"]
[SourceTitle "playchess.com"]
[Source "ChessBase"]
[SourceQuality "1"]
[TimeControl "40/5400+30:1800+30"]

{[%evp 9,90,6,16,18,12,13,25,0,0,0,0,-26,-20,-11,0,-18,-28,-155,-37,-47,-36,-17,0,0,0,-29,-9,-26,-22,-8,0,-14,0,-37,-18,-19,-13,-37,-23,-41,-19,-27,-28,-46,-40,-141,-104,-141,-100,-558,-567,-572,-413,-420,-410,-849,-855,-834,-702,-702,-711,-975,-925,-904,-905,-901,-890,-983,-1035,-1061,-1045,-1041,-942,-1643,-1734,-1755,-1295,-29987,-29988,-29985,-29986,-29989,-29990]} 1. e3 {[%emt 0:00:24]} Nf6 {[%emt 0:00:32]} 2. Nf3 {[%emt 0:00:45]} d5 {[%emt 0:00:34]} 3. b3 {[%emt 0:00:26]} e6 {[%emt 0:01:25]} 4. Bb2 {[%emt 0:00:34]} Bd6 {[%emt 0:00:05]} 5. c4 {[%emt 0:01:42]} O-O {[%emt 0:00:15]} 6. Nc3 {[%emt 0:01:58][%cal Bb1c3,Bc3e4,Be4g3][%mdl 32]} a6 {[%emt 0:01:48]} 7. d4 {[%emt 0:02:43]} b6 {[%emt 0:00:07]} 8. Bd3 {[%emt 0:02:17] White has an edge.} Bb7 {[%emt 0:00:36]} 9. Qc2 {[%emt 0:03:37]} Nbd7 {[%emt 0:04:43]} 10. e4 {[%emt 0:14:51]} dxe4 {[%emt 0:02:46]} 11. Nxe4 {[%emt 0:00:17]} Bb4+ {[%emt 0:01:09]} 12. Ke2 {[%emt 0:03:29]} Nh5 {[%emt 0:06:40]} 13. Qc1 {[%emt 0:43:11] [#] Prevents Nf4+.} (13. g3 $11 {keeps the balance.}) 13... f5 {[%emt 0:31:59]} ({Black should try} 13... e5 $1 $17 14. dxe5 f6) 14. Ng3 $1 $15 {[%emt 0:00:07]} Nhf6 {[%emt 0:00:53][%cal Of5f4]} (14... e5 {with more complications.} 15. dxe5 Bxf3+ 16. gxf3 Re8) 15. Qc2 {[%emt 0:21:39]} Bd6 {[%emt 0:03:20]} 16. Rhe1 {[%emt 0:00:00]} Bb4 {[%emt 0:19:17]} 17. Red1 {[%emt 0:00:00]} Qe8 {[%emt 0:02:53]} (17... Bxf3+ {simplifies} 18. gxf3 g6 19. Kf1 c6) 18. c5 {[%emt 0:00:00]} bxc5 {[%emt 0:02:38]} 19. a3 {[%emt 0:00:00] [#]} c4 $1 {[%emt 0:00:28]} 20. bxc4 {[%emt 0:00:00]} Bd6 {[%emt 0:00:06]} 21. c5 {[%emt 0:00:00]} Bxg3 {[%emt 0:01:01]} 22. c6 {[%emt 0:00:14] [#]} Bxc6 {[%emt 0:00:23]} 23. Qxc6 {[%emt 0:00:23]} Bd6 $36 {[%emt 0:00:01][%mdl 2048] Black has good play.} 24. Kf1 {[%emt 0:01:44][%cal Od1e1]} Nb6 {[%emt 0:02:21]} (24... Ne4 {is interesting.} 25. Kg1 Rb8 26. Qc2 Qh5) 25. Qc2 {[%emt 0:01:03]} Nbd5 {[%emt 0:00:52]} 26. Re1 {[%emt 0:00:22]} Qh5 {[%emt 0:03:17] ...Nf4 would now be deadly.} 27. Bc4 {[%emt 0:01:23]} (27. Bc1 $1 $15) 27... Bxh2 {[%emt 0:02:41] Hoping for ...Ne4.} 28. Rxe6 {[%emt 0:00:26]} Kh8 {[%emt 0:00:01]} 29. Re5 $2 {[%emt 0:00:52][%mdl 8192] Now White is beyond hope.} Bxe5 $19 {[%emt 0:02:15]} 30. dxe5 {[%emt 0:00:30] [#]} Nf4 $1 {[%emt 0:01:32]} 31. Kg1 {[%emt 0:00:31] Repels Qh1+} Ne4 {[%emt 0:00:40]} 32. e6 {[%emt 0:00:31]} (32. Bf1 $142) 32... Qg4 {[%emt 0:01:14]} 33. Ne1 {[%emt 0:00:16]} Nh3+ {[%emt 0:01:32]} 34. Kf1 {[%emt 0:00:24]} Nhxf2 {[%emt 0:01:03]} 35. Bd4 {[%emt 0:00:16]} Ng3+ {[%emt 0:00:37]} 36. Kxf2 {[%emt 0:00:09]} Qxd4+ {[%emt 0:00:03]} 37. Kxg3 {[%emt 0:00:09]} Qxa1 {[%emt 0:00:14]} 38. Nf3 {[%emt 0:00:05]} Qxa3 {[%emt 0:00:43]} 39. Kf2 {[%emt 0:02:09]} Qc5+ {[%emt 0:00:12]} 40. Kf1 {[%emt 0:00:08]} Qe3 {[%emt 0:00:57]} 41. Qb2 {[%emt 0:30:52]} Rab8 {[%emt 0:30:34]} 42. Qa1 {[%emt 0:00:18]} Qe4 {[%emt 0:02:50]} 43. Qxa6 {[%emt 0:00:00]} Rb1+ {[%emt 0:00:00] Black mates.} 44. Kf2 {[%emt 0:00:00]} Rb2+ {[%emt 0:00:00]} 45. Kg1 {[%emt 0:00:00]} Ra8 {[%emt 0:00:00] Weighted Error Value: White=0.70/Black=0.23 (precise) .  Loses game:     	White=1     	---        Mistake:       	White=3     	Black=1      Inaccurate:     	White=3     	---        OK:         	White=7     	Black=12     Best:        	White=1     	Black=1      Strong:       	White=1     	---        Brilliant:      	---       	Black=1} 0-1